[Event "15th Chennai GM Open 2025"]
[Site "Chennai"]
[Date "2025.01.05"]
[Round "5.10"]
[White "Sanket Chakravarty"]
[Black "Ratnakaran, K.."]
[Result "1-0"]
[ECO "E68"]
[WhiteElo "2374"]
[BlackElo "2225"]
[Annotator "TA"]
[PlyCount "97"]
[EventDate "2025.01.02"]
[EventType "swiss"]
[EventCountry "IND"]
[SourceTitle "playchess.com"]
[Source "ChessBase"]
[SourceQuality "1"]
[TimeControl "5400+30"]

{[%evp 24,97,64,79,129,125,134,59,37,40,52,7,11,10,13,0,0,-19,39,42,37,31,38,22,47,28,131,117,125,122,178,133,311,208,323,317,379,352,363,310,530,530,755,752,983,1000,953,394,404,286,281,0,404,481,479,396,406,0,742,723,734,722,795,624,586,419,1107,871,2666,2543,5699,2646,29980,29981,29988,29989]} 1. c4 {[%emt 0:08:49]} Nf6 {[%emt 0:00:07]} 2. Nf3 {[%emt 0:00:07]} g6 {[%emt 0:00:10]} 3. d4 {[%emt 0:00:17]} Bg7 {[%emt 0:00:06]} 4. g3 {[%emt 0:00:06]} O-O {[%emt 0:00:06]} 5. Bg2 {[%emt 0:00:06]} d6 {[%emt 0:00:16]} 6. Nc3 {[%emt 0:00:16]} Nbd7 {[%emt 0:00:06]} 7. O-O {[%emt 0:00:28]} e5 {[%emt 0:00:04]} 8. Qc2 {[%emt 0:00:54]} Re8 {[%emt 0:00:12]} 9. Rd1 {[%emt 0:00:22]} c6 {[%emt 0:05:01]} 10. e4 {[%emt 0:06:03]} exd4 {[%emt 0:01:02] The main line 10...exd4 scores better than 10...Qe7.} 11. Nxd4 {[%emt 0:00:29]} Ne5 {[%emt 0:00:14]} 12. c5 {[%emt 0:04:15] E68: King's Indian: Fianchetto: 6...Nbd7 7 0-0 e5 8 e4.} d5 {[%emt 0:07:42]} (12... dxc5 13. Nf5 Ned7 14. Nxg7) 13. Bg5 $146 {[%emt 0:10:15]} ({Predecessor:} 13. exd5 Nxd5 14. Nxd5 cxd5 15. h3 Be6 16. Bf4 Rc8 17. Rac1 Qd7 18. Kh2 Nc6 19. Be3 Ne5 {0-1 Mitrabha,G (2434)-Sargsyan,S (2580) Wch U18 Mumbai 2019 (10)}) 13... Qa5 {[%emt 0:07:39]} (13... Bg4 $142) 14. exd5 $16 {[%emt 0:13:36]} Bg4 {[%emt 0:07:49]} 15. Bxf6 {[%emt 0:19:12]} (15. f3 $1 $16 {[%cal Rf3g4]} Bd7 16. Nb3) 15... Bxd1 $14 {[%emt 0:06:28]} 16. Rxd1 {[%emt 0:00:07]} Bxf6 {[%emt 0:00:03]} 17. Ne4 {[%emt 0:00:33]} (17. dxc6 Nxc6 18. Nb3 (18. Nxc6 Qxc5 19. Nxa7 Rxa7 $19) 18... Qc7 $11) 17... Bg7 {[%emt 0:01:40]} 18. Nd6 {[%emt 0:03:23]} Re7 $1 {[%emt 0:01:37]} 19. dxc6 {[%emt 0:01:03]} Nxc6 {[%emt 0:04:50]} 20. Bxc6 {[%emt 0:04:59]} (20. Nxc6 $5 bxc6 (20... Re1+ $2 21. Bf1 $19) 21. Bxc6 $11) 20... Re1+ {[%emt 0:02:05]} (20... Bxd4 $1 $11 21. Nxb7 (21. Bxb7 Rd8 $17) 21... Qb4) 21. Rxe1 $14 {[%emt 0:01:08]} Qxe1+ {[%emt 0:00:09]} 22. Kg2 {[%emt 0:00:02]} bxc6 {[%emt 0:03:52]} 23. Nxc6 {[%emt 0:00:06]} a5 {[%emt 0:05:42]} 24. Qb3 {[%emt 0:02:51]} Qe6 {[%emt 0:01:08] [#]} (24... Rf8 $11) 25. Qf3 $1 $16 {[%emt 0:00:31]} (25. Qxe6 $6 fxe6 26. b3 Bf8 $16) 25... Rf8 {[%emt 0:02:03]} (25... Qxa2 26. Ne7+ Kf8 27. b3 (27. Qxa8+ Kxe7 28. Qb7+ Kf6 $18) (27. Nxg6+ hxg6 28. Qxa8+ Ke7 $18) (27. Qxa8+ Kxe7 28. Qb7+ Kf6 $18) (27. Nxg6+ hxg6 28. Qxa8+ Ke7 $18)) 26. b3 {[%emt 0:00:50]} (26. Nxa5 $6 Bxb2 27. Qd3 Ra8 $11 (27... Qxa2 28. Nc6 $17)) 26... f5 {[%emt 0:02:42]} (26... Bb2 $16 {was worth a try.} 27. Nxa5 Ba3) 27. Nxa5 {[%emt 0:00:48]} h5 $2 {[%emt 0:09:40]} (27... f4 $16) 28. h3 {[%emt 0:00:41]} h4 {[%emt 0:02:44]} (28... f4 $142 29. gxf4 Qf6) 29. gxh4 $18 {[%emt 0:00:07]} Bf6 {[%emt 0:05:45]} 30. Nac4 {[%emt 0:05:56]} Bxh4 {[%emt 0:02:05]} 31. c6 {[%emt 0:03:02]} Qe7 $2 {[%emt 0:00:55]} (31... Bd8 32. Nb5 Qf7) 32. b4 $18 {[%emt 0:01:20]} Kh7 {[%emt 0:05:03]} 33. b5 {[%emt 0:00:40]} Rf6 {[%emt 0:03:19]} 34. Qf4 {[%emt 0:07:13]} Re6 {[%emt 0:00:13] [#]} 35. c7 {[%emt 0:01:59]} (35. Nf7 $142 $1 {c7 would now be deadly.} Qxf7 (35... g5 36. Qxf5+) 36. Qxh4+ Kg7 37. Qd4+ (37. a4 f4 $18) 37... Kh7 38. Ne5) 35... Bg5 $18 {[%emt 0:00:11]} 36. Qg3 {[%emt 0:00:20]} (36. c8=Q $2 Bxf4 37. Qb7 Bxd6 $19) 36... Bh4 {[%emt 0:00:30]} 37. Qf4 {[%emt 0:03:11]} (37. c8=Q Bxg3 38. Kxg3 Qg5+ 39. Kf3 Qh5+ 40. Kg3 Qg5+ 41. Kf3 Qh5+ 42. Kg2 Qg5+ 43. Kf1 (43. Kf3 Qh5+ $11) 43... Qc1+ 44. Kg2 Qg5+ 45. Kf3 $11) (37. c8=N Bxg3 38. Nxe7 Bxd6 39. Nxd6 Rxd6 $18) (37. Nxf5 $142 Bxg3 38. Nxe7 (38. c8=B $2 gxf5 39. Bxe6 Qxe6 $19) 38... Bxc7 39. Nd5) 37... Bg5 $1 $18 {[%emt 0:00:06]} 38. Qf3 {[%emt 0:01:10]} (38. c8=Q $2 {loses.} Bxf4 39. Qb7 Bxd6 $19) ({Less strong is} 38. Qg3 Bh4 39. Qf4 $18 (39. c8=Q Bxg3 40. fxg3 Rxd6 $11)) 38... Qxc7 {[%emt 0:01:38]} 39. b6 {[%emt 0:00:00]} Qd8 {[%emt 0:03:23]} 40. Nf7 $2 {[%emt 0:00:43]} (40. Qd5 $18 Re7 41. b7) 40... Qf6 $2 {[%emt 0:00:07][%mdl 8192]} (40... Qe7 $11 41. h4 Bf4 42. Qxf4 Qxf7) 41. b7 $18 {[%emt 0:00:07]} Re8 {[%emt 0:00:05]} 42. Ncd6 {[%emt 0:00:20]} Rb8 {[%emt 0:01:32]} 43. a4 {[%emt 0:00:01]} Bd2 {[%emt 0:01:20]} 44. Qd5 {[%emt 0:00:01]} Qc3 {[%emt 0:03:13]} (44... Bb4 $142 45. a5 Bxa5) 45. Ne5 {[%emt 0:00:18]} Qc7 {[%emt 0:01:52]} 46. Qxd2 {[%emt 0:00:21]} Rd8 {[%emt 0:00:09]} 47. Qb4 {[%emt 0:01:27]} f4 {[%emt 0:01:27]} 48. Nef7 {[%emt 0:00:20]} Rf8 {[%emt 0:01:11]} 49. Qxf4 {[%emt 0:00:18]} 1-0

[Event "15th Chennai GM Open 2025"]
[Site "Chennai"]
[Date "2025.01.05"]
[Round "5.11"]
[White "Aditya Varun Gampa"]
[Black "Shahil Dey"]
[Result "1/2-1/2"]
[ECO "B80"]
[WhiteElo "2180"]
[BlackElo "2374"]
[Annotator "TA"]
[PlyCount "91"]
[EventDate "2025.01.02"]
[EventType "swiss"]
[EventCountry "IND"]
[SourceTitle "playchess.com"]
[Source "ChessBase"]
[SourceQuality "1"]
[TimeControl "5400+30"]

{[%evp 11,91,12,35,23,24,8,69,47,72,62,69,95,100,72,73,26,26,23,20,0,121,95,106,96,93,113,160,19,129,145,238,236,283,287,327,322,275,202,544,480,473,420,392,0,486,489,590,375,341,115,85,92,94,87,70,57,96,68,86,84,79,72,85,71,88,87,88,87,87,83,241,0,0,0,0,0,0,0,0,0,0,0]} 1. e4 {[%emt 0:06:37]} c5 {[%emt 0:00:07]} 2. Nc3 {[%emt 0:00:25]} a6 {[%emt 0:00:07]} 3. Nf3 {[%emt 0:00:10]} e6 {[%emt 0:00:06]} 4. d4 {[%emt 0:00:03]} cxd4 {[%emt 0:00:05]} 5. Nxd4 {[%emt 0:00:04]} d6 {[%emt 0:00:06]} 6. Be3 {[%emt 0:07:31]} Nf6 {[%emt 0:00:18]} 7. a3 {[%emt 0:00:56]} Be7 {[%emt 0:00:28]} 8. Qe2 {[%emt 0:00:11]} Qc7 {[%emt 0:02:07]} ({Black should try} 8... e5 $11 9. Nb3 Be6) 9. O-O-O {[%emt 0:03:54] White is more active.} b5 {[%emt 0:01:53]} 10. g4 {[%emt 0:04:46]} h5 {[%emt 0:03:24]} 11. g5 {[%emt 0:00:24]} Ng4 {[%emt 0:00:12]} 12. g6 {[%emt 0:00:19]} fxg6 {[%emt 0:13:02]} 13. Bh3 {[%emt 0:00:27]} ({Better is} 13. f4 $16) 13... e5 $1 $11 {[%emt 0:08:59]} 14. Nb3 {[%emt 0:03:06][%mdl 1024] White has compensation.} Qc4 {[%emt 0:13:43] Prevents Nd5} 15. Rd3 {[%emt 0:03:02]} Be6 {[%emt 0:05:41]} (15... Qf7 $1 $11) 16. Nd2 {[%emt 0:10:38]} Qc8 {[%emt 0:04:15]} 17. Nd5 {[%emt 0:01:21]} Bd8 {[%emt 0:12:05]} 18. Bb6 {[%emt 0:20:51]} (18. Nb6 Bxb6 19. Bxb6 Ke7 $11 (19... Qc6 20. Ba5 $14)) 18... Bxd5 {[%emt 0:01:28]} (18... Nd7 $142 19. Bxd8 Qxd8) 19. Bxd8 {[%emt 0:00:36]} (19. exd5 $16 {Strongly threatening Rc3.} Bxb6 20. f3) 19... Qxd8 {[%emt 0:08:14]} (19... Bf7 $11 {remains equal.} 20. Bb6 (20. Rxd6 Qc5 $15) 20... O-O) 20. exd5 $16 {[%emt 0:02:01][%cal Od2e4]} (20. Rxd5 Nf6) 20... Qh4 {[%emt 0:05:13]} (20... Nd7 $16 {was called for.}) 21. Rg3 $18 {[%emt 0:04:26]} Nf6 {[%emt 0:02:27]} 22. Qd3 {[%emt 0:06:11]} Rh6 {[%emt 0:01:38]} 23. Qc3 {[%emt 0:06:23]} (23. Rxg6 e4 24. Qg3 Qxg3 25. Rxg3 Ra7 $16) (23. Re1 Nbd7 $16) 23... Nbd7 {[%emt 0:01:11]} 24. Qc6 {[%emt 0:00:34][%csl LRa8,LRd6]} Rb8 $2 {[%emt 0:01:35]} (24... Rd8 {is tougher.} 25. Qxd6 g5) 25. Qxd6 {[%emt 0:01:15]} (25. Qxa6 Qd4 $16) (25. Bxd7+ Nxd7 26. Qxd6 g5 $18) 25... g5 {[%emt 0:03:02]} 26. Qe6+ {[%emt 0:01:45]} (26. Qxa6 g4 $18) 26... Kf8 {[%emt 0:00:15]} 27. Qd6+ {[%emt 0:00:06]} (27. Qxa6 g4 $18) 27... Ke8 {[%emt 0:00:08]} 28. Re1 {[%emt 0:03:45]} (28. Qxa6 g4 $18) 28... Rd8 {[%emt 0:10:11]} 29. Bxd7+ {[%emt 0:08:18]} Nxd7 {[%emt 0:00:07]} 30. Rxe5+ $2 {[%emt 0:00:12]} (30. Qc7 $18 {and the rest is easy.}) 30... Nxe5 $16 {[%emt 0:00:02]} 31. Qxe5+ {[%emt 0:00:06]} Kf8 {[%emt 0:00:42]} 32. Rxg5 {[%emt 0:01:10]} Rf6 {[%emt 0:00:58] Threatens to win with ...Re8.} 33. Rxh5 $40 {[%emt 0:01:20][%mdl 128] White mounts an attack.} Qxf2 {[%emt 0:00:00] ( -> ...Qg1+)} 34. b3 $1 {[%emt 0:00:58]} ({But not} 34. Rh8+ $2 Kf7 35. Qh5+ (35. Rxd8 {is a self mate.} Qg1+) (35. Qc7+ $2 Kg6 $19) 35... Ke7 $19) 34... Kg8 {[%emt 0:00:18] [#] Repels Rh8+} 35. Ne4 $1 {[%emt 0:01:04]} Qf4+ {[%emt 0:01:47]} 36. Kb2 {[%emt 0:00:11] The board is on fire.} Qxe5+ {[%emt 0:01:29]} 37. Rxe5 {[%emt 0:00:01][%mdl 4096] Endgame KRR-KRN} Rh6 {[%emt 0:00:28] [#]} 38. c4 $1 {[%emt 0:00:35]} bxc4 {[%emt 0:00:01]} 39. bxc4 {[%emt 0:00:06]} Rxh2+ {[%emt 0:01:00]} 40. Kc3 {[%emt 0:00:01]} Rh1 $2 {[%emt 0:00:21]} (40... Rh3+ $16 41. Kd4 Rxa3) 41. Re7 $2 {[%emt 0:01:38]} ({White must play} 41. c5 $18) 41... Kf8 $11 {[%emt 0:00:22]} 42. Rb7 {[%emt 0:01:24]} Rc1+ {[%emt 0:00:12]} 43. Kd3 {[%emt 0:01:05]} Rd1+ {[%emt 0:00:03]} 44. Kc3 {[%emt 0:00:52]} Rc1+ {[%emt 0:00:03]} 45. Kd3 {[%emt 0:00:08]} Rd1+ {[%emt 0:00:05]} 46. Kc3 {[%emt 0:01:20]} 1/2-1/2

[Event "15th Chennai GM Open 2025"]
[Site "Chennai"]
[Date "2025.01.05"]
[Round "5.12"]
[White "Venkatesh, M.R."]
[Black "Shirliyev, Allayar"]
[Result "1/2-1/2"]
[ECO "C54"]
[WhiteElo "2362"]
[BlackElo "2196"]
[Annotator "TA"]
[PlyCount "72"]
[EventDate "2025.01.02"]
[EventType "swiss"]
[EventCountry "IND"]
[SourceTitle "playchess.com"]
[Source "ChessBase"]
[SourceQuality "1"]
[TimeControl "5400+30"]

{[%evp 11,72,8,14,0,16,5,20,6,11,16,11,17,8,15,13,18,18,11,13,1,9,0,0,0,0,0,5,-6,0,-11,0,0,0,0,0,-12,-11,-18,-14,-16,-9,-50,-25,-18,-16,-18,-19,-25,-35,-25,0,0,0,0,0,0,0,0,0,0,0,0,0]} 1. e4 {[%emt 0:05:43]} e5 {[%emt 0:00:04]} 2. Bc4 {[%emt 0:00:14]} Nf6 {[%emt 0:00:27]} 3. d3 {[%emt 0:00:05]} Nc6 {[%emt 0:00:26]} 4. Nf3 {[%emt 0:00:44]} Bc5 {[%emt 0:02:06]} 5. c3 {[%emt 0:02:47]} d6 {[%emt 0:00:28]} 6. Bb3 {[%emt 0:00:14]} h6 {[%emt 0:03:34]} 7. Nbd2 {[%emt 0:00:41]} a6 {[%emt 0:02:59]} 8. a4 {[%emt 0:06:40]} Ba7 {[%emt 0:01:24]} 9. Nf1 {[%emt 0:05:29]} Ng4 {[%emt 0:01:49]} 10. Ne3 {[%emt 0:01:43]} Nxe3 {[%emt 0:05:58]} 11. Bxe3 {[%emt 0:00:07]} Bxe3 {[%emt 0:00:09]} 12. fxe3 {[%emt 0:00:05]} Qe7 {[%emt 0:00:28]} 13. O-O {[%emt 0:02:07]} O-O {[%emt 0:03:40]} 14. Qe1 {[%emt 0:04:07]} Be6 {[%emt 0:00:06]} 15. Bd5 {[%emt 0:13:47]} Qd7 {[%emt 0:12:17]} 16. b4 {[%emt 0:07:25]} Bxd5 {[%emt 0:03:18]} 17. exd5 {[%emt 0:00:06]} Ne7 {[%emt 0:00:04]} 18. c4 {[%emt 0:01:44]} f5 {[%emt 0:02:46]} 19. Qc3 {[%emt 0:16:20]} Rf6 {[%emt 0:00:49]} 20. Rf2 {[%emt 0:03:52]} Raf8 {[%emt 0:04:58]} 21. b5 {[%emt 0:05:30]} g5 {[%emt 0:01:05]} 22. bxa6 {[%emt 0:02:08]} bxa6 {[%emt 0:00:05]} 23. d4 {[%emt 0:00:37]} e4 {[%emt 0:02:20]} 24. Nd2 {[%emt 0:00:05][%cal Bf3d2,Bd2c4,Bc4e5,Be5d7][%mdl 32]} Ng6 {[%emt 0:00:51]} 25. Raf1 {[%emt 0:09:15][%cal Od2e4]} R6f7 {[%emt 0:00:10]} 26. c5 {[%emt 0:01:46]} dxc5 {[%emt 0:05:35]} 27. Qxc5 {[%emt 0:00:06]} Ne7 {[%emt 0:00:06]} 28. Nc4 {[%emt 0:00:49]} Qxd5 {[%emt 0:00:19]} 29. Ne5 {[%emt 0:02:45] and Qxd5 would now be decisive} Qxc5 {[%emt 0:02:25]} 30. dxc5 {[%emt 0:00:03]} Rh7 {[%emt 0:03:47]} 31. Rd2 {[%emt 0:02:28] Prevents Rd8.} Rg7 {[%emt 0:05:30]} 32. g4 {[%emt 0:01:06]} f4 {[%emt 0:03:50]} 33. Nd7 {[%emt 0:01:57]} Rff7 {[%emt 0:00:44]} 34. Ne5 {[%emt 0:00:05]} Rf8 {[%emt 0:01:36]} 35. Nd7 {[%emt 0:00:25]} Rff7 {[%emt 0:01:52]} 36. Ne5 {[%emt 0:00:07] Prevents Nc6} Rf8 {[%emt 0:02:54]} 1/2-1/2

[Event "15th Chennai GM Open 2025"]
[Site "Chennai"]
[Date "2025.01.05"]
[Round "5.13"]
[White "Madhesh Kumar S"]
[Black "Nguyen, Duc Hoa"]
[Result "1-0"]
[ECO "B33"]
[WhiteElo "2006"]
[BlackElo "2358"]
[Annotator "TA"]
[PlyCount "69"]
[EventDate "2025.01.02"]
[EventType "swiss"]
[EventCountry "IND"]
[SourceTitle "playchess.com"]
[Source "ChessBase"]
[SourceQuality "1"]
[TimeControl "5400+30"]

{[%evp 14,69,36,0,38,-10,0,0,0,0,8,0,105,95,86,72,89,118,127,120,119,60,74,80,111,79,82,77,79,77,105,106,143,128,122,0,0,-19,-20,-8,80,9,11,11,8,6,52,83,198,183,171,179,427,416,1664,1462,29991,29992]} 1. e4 {[%emt 0:00:04]} c5 {[%emt 0:04:28]} 2. Nf3 {[%emt 0:00:04]} Nc6 {[%emt 0:00:21]} 3. d4 {[%emt 0:00:09]} cxd4 {[%emt 0:00:05]} 4. Nxd4 {[%emt 0:00:08]} Qb6 {[%emt 0:00:48]} 5. Nb3 {[%emt 0:13:32]} Nf6 {[%emt 0:00:14]} 6. Nc3 {[%emt 0:00:05]} e6 {[%emt 0:00:10]} 7. Be3 {[%emt 0:03:06]} Qc7 {[%emt 0:00:10]} 8. f3 {[%emt 0:11:40]} a6 {[%emt 0:01:19]} 9. Na4 {[%emt 0:04:48]} (9. Qd2 $14 {is more appropriate.}) 9... b5 {[%emt 0:07:10]} 10. Nb6 {[%emt 0:00:12]} Rb8 {[%emt 0:00:10] The position is equal.} 11. Nxc8 {[%emt 0:00:07]} Qxc8 {[%emt 0:00:17]} 12. a4 {[%emt 0:09:57]} b4 {[%emt 0:02:09]} (12... bxa4 $11 13. Rxa4 d5) 13. Qe2 $16 {[%emt 0:03:01]} Ra8 {[%emt 0:01:21]} 14. O-O-O {[%emt 0:03:07]} Be7 {[%emt 0:00:49]} 15. g4 {[%emt 0:00:14] White is more active.} Qc7 {[%emt 0:01:07]} 16. h4 {[%emt 0:00:58]} d6 {[%emt 0:11:10][%cal Bd7d6,Bd6d5][%mdl 32]} 17. h5 {[%emt 0:02:08]} ({White should play} 17. g5 $16 Nh5 18. Qf2) 17... h6 $14 {[%emt 0:01:28]} 18. Kb1 {[%emt 0:05:56]} Na5 {[%emt 0:04:14]} 19. Rg1 {[%emt 0:03:20]} d5 {[%emt 0:08:12]} 20. g5 {[%emt 0:14:46]} hxg5 {[%emt 0:00:24]} 21. Bxg5 {[%emt 0:00:08] exd5 is the strong threat.} Nxb3 {[%emt 0:01:03]} 22. cxb3 {[%emt 0:00:10]} Rxh5 {[%emt 0:11:03]} 23. f4 {[%emt 0:02:47] Strongly threatening Bxf6.} Rxg5 {[%emt 0:10:07]} 24. Rxg5 {[%emt 0:00:38]} (24. fxg5 $16 Nxe4 25. Rh1) 24... Qxf4 $11 {[%emt 0:02:22]} 25. Rxg7 {[%emt 0:00:06] Threatens to win with exd5.} (25. Qc2 $5 Kf8 (25... Qxg5 $2 {too greedy.} 26. Qc6+ Kf8 27. Qxa8+ Ne8 28. Rc1 $18) (25... Qxe4 $2 26. Bd3 $18) 26. Rg2 $15) 25... Kf8 {[%emt 0:00:17][%cal Be8f8,Bf8e7,Be7d6][%mdl 32]} (25... Qxe4+ 26. Qxe4 Nxe4 27. Rg8+ Bf8 28. Rh8) ({Don't play} 25... Nxe4 $6 26. Rg8+ Bf8 27. Qc2 $18) 26. Rg2 {[%emt 0:01:01] Hoping for exd5.} Nxe4 {[%emt 0:02:10]} (26... Qxe4+ $11 27. Qxe4 Nxe4) 27. Qh5 {[%emt 0:04:19]} (27. Qc2 $16) 27... Bf6 {[%emt 0:00:28] Dodges Bxa6} 28. Bd3 {[%emt 0:00:14]} Ke7 {[%emt 0:03:46]} 29. Rc2 {[%emt 0:01:48]} a5 {[%emt 0:01:53]} (29... Rh8 $11 {feels stronger.} 30. Qe2 Ng3) 30. Rdc1 $1 $14 {[%emt 0:01:51]} Be5 {[%emt 0:00:39] Inhibits Rc7+.} (30... Nd6 $16 {was worth a try.}) 31. Bxe4 $18 {[%emt 0:02:49]} Qxe4 {[%emt 0:02:06] [#]} 32. Ka2 $1 {[%emt 0:00:11][%cal Oc2c7] aiming for Rc7+!} Qf4 $2 {[%emt 0:00:25]} (32... Rg8) 33. Re1 {[%emt 0:00:25]} Kd6 {[%emt 0:13:53] [#]} (33... Rh8 $142 34. Qxe5 Qxe5 35. Rxe5 Kd6) 34. Rxe5 $1 {[%emt 0:00:11][%mdl 512]} Qxe5 {[%emt 0:00:02]} (34... Qf6 35. Re1) 35. Qxf7 {[%emt 0:00:04] Weighted Error Value: White=0.16 (very precise) /Black=0.57.  Mistake:       	White=4     	Black=6      Inaccurate:     	---       	Black=3      OK:         	White=9     	Black=9      Best:        	White=3     	---        Strong:       	White=2     	---        Brilliant:      	White=1     	---} 1-0

[Event "15th Chennai GM Open 2025"]
[Site "Chennai"]
[Date "2025.01.05"]
[Round "5.14"]
[White "Nitin, S.."]
[Black "Sarveshwaran V"]
[Result "0-1"]
[ECO "C18"]
[WhiteElo "2338"]
[BlackElo "2150"]
[Annotator "TA"]
[PlyCount "88"]
[EventDate "2025.01.02"]
[EventType "swiss"]
[EventCountry "IND"]
[SourceTitle "playchess.com"]
[Source "ChessBase"]
[SourceQuality "1"]
[TimeControl "5400+30"]

{[%evp 13,88,-10,-15,-30,-11,-20,-16,-32,27,12,24,0,21,-10,-13,-34,-35,-30,-22,-19,-34,-68,-51,-49,-47,-48,-48,-47,-4,-78,-77,-102,-77,-79,-60,-151,-157,-158,-157,-143,-129,-140,-24,-18,0,0,0,-79,-85,-306,-316,-440,-503,-608,-578,-616,-603,-564,-568,-578,-562,-668,-659,-658,-629,-625,-627,-734,-732,-725,-696,-693,-670,-991,-669,-854,-654]} 1. e4 {[%emt 0:00:36]} e6 {[%emt 0:00:22]} 2. d4 {[%emt 0:00:11]} d5 {[%emt 0:00:05]} 3. Nc3 {[%emt 0:00:08]} Bb4 {[%emt 0:00:09]} 4. e5 {[%emt 0:01:37]} c5 {[%emt 0:00:07]} 5. a3 {[%emt 0:01:26]} Bxc3+ {[%emt 0:00:12]} 6. bxc3 {[%emt 0:00:08]} Ne7 {[%emt 0:00:04]} 7. h4 {[%emt 0:00:40]} Qc7 {[%emt 0:00:10]} 8. h5 {[%emt 0:04:18]} h6 {[%emt 0:00:46]} 9. Bd2 {[%emt 0:02:37]} Nbc6 {[%emt 0:01:46]} 10. Qg4 {[%emt 0:02:26]} Rg8 {[%emt 0:19:53]} (10... Nf5 $15) 11. Nf3 $11 {[%emt 0:04:36]} (11. dxc5 Nxe5 (11... Qxe5+ 12. Ne2 $15) 12. Qg3 f6 $11) 11... c4 {[%emt 0:02:22]} 12. Qf4 {[%emt 0:10:37]} Bd7 {[%emt 0:01:34]} 13. g4 {[%emt 0:02:58]} O-O-O {[%emt 0:02:45]} 14. Bh3 {[%emt 0:07:29][%cal Og4g5]} (14. Qxf7 $2 Rdf8 $19) 14... Rdf8 {[%emt 0:02:16]} 15. Ke2 {[%emt 0:04:57]} Qa5 {[%emt 0:11:43]} 16. a4 {[%emt 0:06:11]} f6 {[%emt 0:04:56]} 17. exf6 {[%emt 0:06:48]} Rxf6 {[%emt 0:06:01]} 18. Qg3 $1 {[%emt 0:00:30]} Rgf8 {[%emt 0:02:15]} 19. Bg2 {[%emt 0:01:13]} R6f7 {[%emt 0:03:27][%cal Oe6e5]} 20. Rhb1 {[%emt 0:11:55]} a6 {[%emt 0:03:36][%cal Oe6e5] Against Rb5} 21. Rf1 {[%emt 0:12:47]} (21. Rb2 $11 {remains equal.}) 21... g5 $17 {[%emt 0:06:47][%cal Of7f4]} 22. Ra2 {[%emt 0:05:22]} Qc7 {[%emt 0:10:30]} 23. Qxc7+ {[%emt 0:00:05]} Kxc7 {[%emt 0:00:04]} 24. Be3 {[%emt 0:04:07] [#]} (24. Nh2 $15) 24... e5 $1 {[%emt 0:00:44][%mdl 512]} 25. Nxe5 {[%emt 0:01:43]} Nxe5 {[%emt 0:00:11]} 26. dxe5 {[%emt 0:00:02]} Bxg4+ {[%emt 0:00:09]} 27. Kd2 {[%emt 0:00:03] [#]} Nc6 {[%emt 0:01:21]} (27... Bxh5 $6 28. Rb2 $11) (27... Nf5 $1 $17 {[%cal Rf5e3] and ...Nxe3 would now be decisive} 28. Bc5 (28. Bxd5 $2 Rd8 $19) 28... Re8) 28. Bc5 {[%emt 0:03:54]} (28. Bxd5 $2 Rd7 (28... Rd8 $2 29. Kc1 $19) 29. Kc1 Rxd5 $19) 28... Rd8 {[%emt 0:02:30]} (28... Nxe5 $5 29. Rb2 Bf3 $15) 29. Bd6+ {[%emt 0:01:40] A strong pair of Bishops.} Kc8 {[%emt 0:00:06]} 30. Ke3 {[%emt 0:03:47] Against Bf3} (30. Bxd5 $2 Nxe5 31. Bxe5 Rxd5+ 32. Bd4 Bh3 $19 (32... Bxh5 $2 33. Rb2 $19)) (30. f3 $11 Be6 31. Rb2) 30... Re8 {[%emt 0:04:39] Black has more active pieces.} 31. Bxd5 $2 {[%emt 0:00:16]} (31. f3 $17 Bxh5 32. Rh1 (32. Bh3+ $2 Kd8 $19) 32... Nxe5 33. Bxe5 (33. Rxh5 $2 {loses.} Nxf3+ 34. Kf2 Nh4+ 35. Kg1 Re1+ 36. Kh2 Re2 $19) 33... Rxe5+ 34. Kd4) 31... Nxe5 $1 $19 {[%emt 0:03:03]} 32. Bxe5 {[%emt 0:00:04]} Rf4 {[%emt 0:00:45]} ({Weaker is} 32... Rxe5+ 33. Kd4 Rfe7 34. f3 $19) 33. Bg2 {[%emt 0:01:18]} Rxe5+ {[%emt 0:00:13]} 34. Kd2 {[%emt 0:00:01]} Re2+ {[%emt 0:00:10]} 35. Kc1 {[%emt 0:00:01]} Rfxf2 {[%emt 0:00:27]} 36. Rxf2 {[%emt 0:00:01]} Rxf2 {[%emt 0:00:02][%mdl 4096] Endgame KRB-KRB. Black is a pawn up.} 37. Bd5 {[%emt 0:00:02]} Rf1+ {[%emt 0:00:02]} 38. Kb2 {[%emt 0:00:09]} Bxh5 {[%emt 0:01:03]} 39. Bxc4 {[%emt 0:00:08]} Rf4 {[%emt 0:00:40]} 40. Bd3 {[%emt 0:01:01]} Bf3 {[%emt 0:00:15]} 41. Ra1 {[%emt 0:01:19]} g4 {[%emt 0:00:14]} 42. Re1 {[%emt 0:00:09]} g3 {[%emt 0:00:39]} 43. Re8+ {[%emt 0:00:08]} Kc7 {[%emt 0:00:12][%cal Og3g2]} 44. Re7+ {[%emt 0:01:04]} Kb8 {[%emt 0:00:31]} 0-1